bitfinex/quotes_BTCUSD_20250727
["timestamp","ask_amount","ask_price","bid_price","bid_amount"]
[1753605002995,0.17775506,118140.0,118130.0,0.78784587]
[1753605003214,0.17775506,118140.0,118130.0,0.77938062]
[1753605003976,0.17775506,118140.0,118130.0,0.78784587]
[1753605005167,0.17775506,118140.0,118130.0,0.79631104]
[1753605005820,0.17775506,118140.0,118130.0,0.78784587]
[1753605006184,0.17775506,118140.0,118130.0,0.79631104]
[1753605006395,0.17775506,118140.0,118130.0,0.78784587]
[1753605006978,0.17775506,118140.0,118130.0,0.79631104]
[1753605009120,0.17775506,118140.0,118130.0,0.78784587]
[1753605009899,0.17775506,118140.0,118130.0,0.79631104]
[1753605010758,0.17775506,118140.0,118130.0,0.48002127]
[1753605011002,0.17775506,118140.0,118130.0,0.79631104]
[1753605011969,0.17775506,118140.0,118130.0,0.78784587]
[1753605012252,0.17775506,118140.0,118130.0,0.4715561]
[1753605012501,0.17775506,118140.0,118130.0,0.48002127]
[1753605013331,0.17775506,118140.0,118130.0,0.4715561]
[1753605013741,0.17775506,118140.0,118130.0,0.48002127]
[1753605013962,0.17775506,118140.0,118130.0,0.4715561]
[1753605016204,0.17775506,118140.0,118130.0,0.48002127]
[1753605018135,0.17775506,118140.0,118130.0,0.4715561]
[1753605018685,0.17775506,118140.0,118130.0,0.48002127]
[1753605019033,0.17775506,118140.0,118130.0,0.4715561]
[1753605019314,0.20935506,118140.0,118130.0,0.4715561]
[1753605019894,0.20935506,118140.0,118130.0,0.46309085]
[1753605020124,0.20935506,118140.0,118130.0,0.4715561]
[1753605020915,0.20935506,118140.0,118130.0,0.46309085]
[1753605021140,0.20935506,118140.0,118130.0,0.4715561]
[1753605021364,0.20935506,118140.0,118130.0,0.46309085]
[1753605022526,0.20935506,118140.0,118130.0,0.4715561]
[1753605022752,0.20935506,118140.0,118130.0,0.46309085]
[1753605025393,0.0316,118140.0,118130.0,0.46309085]
[1753605025583,0.05699273,118140.0,118130.0,0.48002112]
[1753605025836,0.23474793,118140.0,118130.0,0.46309085]
[1753605026064,0.23474793,118140.0,118130.0,0.4715561]
[1753605026828,0.2262839,118140.0,118130.0,0.46309085]
[1753605027021,0.2262839,118140.0,118130.0,0.4715561]
[1753605027241,0.2262839,118140.0,118130.0,0.46309085]
[1753605027462,0.2262839,118140.0,118130.0,0.4715561]
[1753605029067,0.2262839,118140.0,118130.0,0.46309085]
[1753605029301,0.2262839,118140.0,118130.0,0.4715561]
[1753605029856,0.2262839,118140.0,118130.0,0.46309085]
[1753605031517,0.2262839,118140.0,118130.0,0.4715561]
[1753605031938,0.2262839,118140.0,118130.0,0.46309085]
[1753605032846,0.21781966,118140.0,118130.0,0.46309085]
[1753605041343,0.21781966,118140.0,118130.0,0.4715561]
[1753605041555,0.21781966,118140.0,118130.0,0.46309085]
[1753605041777,0.21781966,118140.0,118130.0,0.4715561]
[1753605041999,0.21781966,118140.0,118130.0,0.46309085]
[1753605043978,0.21722155,118140.0,118130.0,0.46309085]
[1753605046371,0.0394662,118140.0,118130.0,0.46309085]
[1753605046584,0.21722126,118140.0,118130.0,0.4715561]
[1753605046795,0.21722126,118140.0,118130.0,0.46309085]
[1753605048189,0.20875695,118140.0,118130.0,0.46309085]
[1753605055361,0.20029256,118140.0,118130.0,0.46309085]
[1753605060033,0.18439256,118140.0,118130.0,0.46309085]
[1753605060504,0.18439256,118140.0,118130.0,0.48002127]
[1753605060841,0.18439256,118140.0,118130.0,0.79631104]
[1753605061058,0.18439256,118140.0,118130.0,0.77938062]
[1753605061289,0.18439256,118140.0,118130.0,0.46309085]
[1753605066739,0.18439256,118140.0,118130.0,0.4715561]
[1753605070013,0.18439256,118140.0,118130.0,0.46309085]
[1753605074530,0.18439256,118140.0,118130.0,0.47155602]
[1753605074727,0.18439256,118140.0,118130.0,0.48002127]
[1753605074934,0.18439256,118140.0,118130.0,0.4715561]
[1753605075371,0.02356635,118140.0,118130.0,0.46309085]
[1753605075580,0.04049491,118140.0,118130.0,0.4715561]
[1753605076035,0.04049491,118140.0,118130.0,0.4800212]
[1753605076243,0.04895944,118140.0,118130.0,0.4715561]
[1753605076874,0.04895944,118140.0,118130.0,0.48002127]
[1753605077617,0.04895944,118140.0,118130.0,0.4715561]
[1753605077977,0.04895944,118140.0,118130.0,0.48002127]
[1753605078192,0.04049491,118140.0,118130.0,0.48848637]
[1753605078443,0.03203045,118140.0,118130.0,0.80477614]
[1753605078887,0.02539309,118140.0,118130.0,0.80477614]
[1753605079407,0.02539309,118140.0,118130.0,0.79631104]
[1753605080576,0.02539309,118140.0,118130.0,0.48002127]
[1753605080776,0.02539309,118140.0,118130.0,0.79631104]
[1753605081503,0.02539309,118140.0,118130.0,0.80477614]
[1753605082258,0.02539309,118140.0,118130.0,0.79631104]
[1753605082770,0.02539309,118140.0,118130.0,0.80477614]
[1753605083423,0.02539309,118140.0,118130.0,0.4969514]
[1753605083643,0.02539309,118140.0,118130.0,0.80477614]
[1753605083876,0.02539309,118140.0,118130.0,0.81324117]
[1753605084318,0.19468376,118140.0,118130.0,0.81324117]
[1753605084568,0.19468376,118140.0,118130.0,0.80477614]
[1753605084793,0.19468376,118140.0,118130.0,0.81324117]
[1753605085105,0.19468376,118140.0,118130.0,0.80477614]
[1753605088482,0.19468376,118140.0,118130.0,0.81324117]
[1753605088688,0.19468376,118140.0,118130.0,0.48002127]
[1753605088931,0.19468376,118140.0,118130.0,0.79631104]
[1753605089889,0.19468376,118140.0,118130.0,0.48002127]
[1753605090093,0.19468376,118140.0,118130.0,0.80477614]
[1753605090311,0.19468376,118140.0,118130.0,0.79631104]
[1753605090524,0.19468376,118140.0,118130.0,0.80477614]
[1753605091601,0.19468376,118140.0,118130.0,0.79631104]
[1753605092404,0.19468376,118140.0,118130.0,0.78784587]
[1753605092714,0.18621959,118140.0,118130.0,0.77938062]
[1753605092923,0.18621959,118140.0,118130.0,0.78784587]
[1753605094633,0.18621959,118140.0,118130.0,0.77938062]
[1753605094848,0.18621959,118140.0,118130.0,0.78784587]
[1753605095497,0.18621959,118140.0,118130.0,0.4715561]
[1753605095714,0.18621959,118140.0,118130.0,0.46309085]
[1753605095949,0.18621959,118140.0,118130.0,0.77938062]
[1753605096178,0.1777552,118140.0,118130.0,0.77938062]
[1753605096611,0.1943552,118140.0,118130.0,0.77938062]
[1753605096958,0.1943552,118140.0,118130.0,0.46309085]
[1753605097220,0.1943552,118140.0,118130.0,0.77938062]
[1753605097472,0.1943552,118140.0,118130.0,0.78784587]
[1753605097989,0.1943552,118140.0,118130.0,0.77938062]
[1753605098630,0.1943552,118140.0,118130.0,0.46309085]
[1753605098865,0.1943552,118140.0,118130.0,0.4715561]
[1753605099835,0.1943552,118140.0,118130.0,0.46309085]
[1753605101196,0.1943552,118140.0,118130.0,0.4715561]
[1753605101434,0.1943552,118140.0,118130.0,0.46309085]
[1753605102518,0.1943552,118140.0,118130.0,0.4715561]
[1753605102925,0.1943552,118140.0,118130.0,0.46309085]
[1753605104415,0.1943552,118140.0,118130.0,0.4715561]
[1753605104639,0.1943552,118140.0,118130.0,0.46309085]
[1753605105070,0.1943552,118140.0,118130.0,0.4715561]
[1753605105285,0.1943552,118140.0,118130.0,0.46309085]
[1753605107960,0.1943552,118140.0,118130.0,0.4715561]
[1753605108372,0.1943552,118140.0,118130.0,0.46309085]
[1753605109908,0.1943552,118140.0,118130.0,0.4715561]
[1753605110331,0.1943552,118140.0,118130.0,0.46309085]
[1753605110539,0.1943552,118140.0,118130.0,0.4715561]
[1753605110782,0.2108552,118140.0,118130.0,0.29378585]
[1753605111250,0.2108552,118140.0,118130.0,0.61007562]
[1753605111489,0.2108552,118140.0,118130.0,0.78784587]
[1753605111784,0.2108552,118140.0,118130.0,0.77938062]
[1753605111995,0.2108552,118140.0,118130.0,0.46309085]
[1753605112178,0.2108552,118140.0,118130.0,0.77938062]
[1753605112400,0.2108552,118140.0,118130.0,0.78784587]
[1753605112843,0.2108552,118140.0,118130.0,0.77938062]
[1753605113062,0.2108552,118140.0,118130.0,0.78784587]
[1753605113292,0.2108552,118140.0,118130.0,0.77938062]
[1753605114407,0.2108552,118140.0,118130.0,0.78784587]
[1753605114640,0.2108552,118140.0,118130.0,0.77938062]
[1753605114841,0.2108552,118140.0,118130.0,0.46309085]
[1753605115056,0.2108552,118140.0,118130.0,0.77938062]
[1753605115493,0.2108552,118140.0,118130.0,0.46309085]
[1753605116354,0.2108552,118140.0,118130.0,0.4715561]
[1753605116744,0.2108552,118140.0,118130.0,0.46309085]
[1753605117644,0.2108552,118140.0,118130.0,0.4715561]
[1753605118200,0.2108552,118140.0,118130.0,0.46309085]
[1753605118412,0.2108552,118140.0,118130.0,0.4715561]
[1753605118847,0.2108552,118140.0,118130.0,0.46309085]
[1753605119037,0.2108552,118140.0,118130.0,0.33529085]
[1753605119232,0.2108552,118140.0,118130.0,0.46309085]
[1753605121603,0.2108552,118140.0,118130.0,0.4715561]
[1753605122311,0.2108552,118140.0,118130.0,0.46309085]
[1753605122681,0.2108552,118140.0,118130.0,0.3437561]
[1753605122877,0.2108552,118140.0,118130.0,0.4715561]
[1753605123277,0.03352884,118140.0,118130.0,0.48002127]
[1753605123853,0.03352884,118140.0,118130.0,0.48848637]
[1753605124085,0.03352884,118140.0,118130.0,0.48002127]
[1753605124282,0.03352884,118140.0,118130.0,0.48848637]
[1753605124729,0.03352884,118140.0,118130.0,0.48002127]
[1753605125150,0.03352884,118140.0,118130.0,0.4715561]
[1753605125563,0.20281951,118140.0,118130.0,0.46309085]
[1753605125771,0.20281951,118140.0,118130.0,0.4715561]
[1753605126409,0.20281951,118140.0,118130.0,0.78784587]
[1753605126861,0.03352884,118140.0,118130.0,0.79631097]
[1753605127062,0.03352884,118140.0,118130.0,0.78784587]
[1753605127264,0.03352884,118140.0,118130.0,0.4715561]
[1753605127478,0.03352884,118140.0,118130.0,0.78784587]
[1753605128148,0.03352884,118140.0,118130.0,0.4715561]
[1753605128362,0.20281951,118140.0,118130.0,0.46309085]
[1753605129296,0.20281951,118140.0,118130.0,0.4715561]
[1753605129704,0.20281951,118140.0,118130.0,0.46309085]
[1753605130293,0.20281951,118140.0,118130.0,0.4715561]
[1753605130795,0.20281951,118140.0,118130.0,0.46309085]
[1753605131023,0.20281951,118140.0,118130.0,0.4715561]
[1753605132716,0.20281951,118140.0,118130.0,0.46309085]
[1753605132934,0.20281951,118140.0,118130.0,0.4715561]
[1753605133136,0.20281951,118140.0,118130.0,0.46309085]
[1753605133625,0.20281951,118140.0,118130.0,0.4715561]
[1753605133825,0.20281951,118140.0,118130.0,0.46309085]
[1753605134028,0.20281951,118140.0,118130.0,0.4715561]
[1753605135344,0.20281951,118140.0,118130.0,0.46309085]
[1753605136022,0.20281951,118140.0,118130.0,0.4715561]
[1753605136223,0.20281951,118140.0,118130.0,0.46309085]
[1753605136440,0.20281951,118140.0,118130.0,0.4715561]
[1753605137482,0.20281951,118140.0,118130.0,0.48002127]
[1753605138339,0.03352884,118140.0,118130.0,0.48002127]
[1753605138555,0.01692884,118140.0,118130.0,0.48002127]
[1753605139330,0.01692884,118140.0,118130.0,0.48848637]
[1753605139544,0.01692884,118140.0,118130.0,0.48002127]
[1753605139998,0.02539294,118140.0,118130.0,0.48002127]
[1753605140416,0.02539294,118140.0,118130.0,0.80477614]
[1753605141032,0.01692798,118140.0,118130.0,0.81344117]
[1753605141262,0.03385682,118140.0,118130.0,0.79651097]
[1753605141679,0.03385682,118140.0,118130.0,0.48022127]
[1753605142303,0.03385682,118140.0,118130.0,0.4717561]
[1753605142559,0.03385682,118140.0,118130.0,0.79651097]
[1753605143006,0.03385682,118140.0,118130.0,0.804976]
[1753605143411,0.03385682,118140.0,118130.0,0.79651097]
[1753605143628,0.03385675,118140.0,118130.0,0.48868623]
[1753605143768,0.02539237,118140.0,118130.0,0.804976]
[1753605143970,0.03385661,118140.0,118130.0,0.804976]
[1753605145750,0.03385661,118140.0,118130.0,0.79651097]
[1753605146386,0.03385661,118140.0,118130.0,0.804976]
[1753605147028,0.03385654,118140.0,118130.0,0.81344096]
[1753605147248,0.03385654,118140.0,118130.0,0.804976]
[1753605147883,0.03385654,118140.0,118130.0,0.48868623]
[1753605148093,0.03385654,118140.0,118130.0,0.804976]
[1753605148303,0.042321,118140.0,118130.0,0.804976]
[1753605148516,0.042321,118140.0,118130.0,0.48868623]
[1753605149808,0.042321,118140.0,118130.0,0.49715119]
[1753605150255,0.042321,118140.0,118130.0,0.48868623]
[1753605151190,0.042321,118140.0,118130.0,0.4802212]
[1753605151626,0.042321,118140.0,118130.0,0.4717561]
[1753605151828,0.03385712,118140.0,118130.0,0.48022127]
[1753605152054,0.04232165,118140.0,118130.0,0.48022127]
[1753605152270,0.04232165,118140.0,118130.0,0.48868637]
[1753605152671,0.04232165,118140.0,118130.0,0.48860637]
[1753605153846,0.04232165,118140.0,118130.0,0.48014127]
[1753605154561,0.03385762,118140.0,118130.0,0.48014127]
[1753605158525,0.35014739,118140.0,118130.0,0.4801412]
[1753605158706,0.35014739,118140.0,118130.0,0.48014127]
[1753605158846,0.35014739,118140.0,118130.0,0.4716761]
[1753605159264,0.35014739,118140.0,118130.0,0.48014127]
[1753605159521,0.03385762,118140.0,118130.0,0.48014127]
[1753605160177,0.35014739,118140.0,118130.0,0.48014127]
[1753605160393,0.35014739,118140.0,118130.0,0.4716761]
[1753605161915,0.34168315,118140.0,118130.0,0.4716761]
[1753605163822,0.02539338,118140.0,118130.0,0.4716761]
[1753605164046,0.34168315,118140.0,118130.0,0.48014127]
[1753605164795,0.51097382,118140.0,118130.0,0.35222127]
[1753605165012,0.51097382,118140.0,118130.0,0.48018127]
[1753605165444,0.51097382,118140.0,118130.0,0.33529085]
[1753605165655,0.51097382,118140.0,118130.0,0.47167602]
[1753605165656,0.35852373,118140.0,118130.0,0.47167602]
[1753605165799,0.56894345,118140.0,118130.0,0.46321085]
[1753605166017,0.56047928,118140.0,118130.0,0.46321085]
[1753605166632,0.56047928,118140.0,118130.0,0.33529085]
[1753605166845,0.56047928,118140.0,118130.0,0.46321085]
[1753605167254,0.53627928,118140.0,118130.0,0.33529085]
[1753605167458,0.53627928,118140.0,118130.0,0.46225085]
[1753605169348,0.53627928,118140.0,118130.0,0.33429085]
[1753605169575,0.53627928,118140.0,118130.0,0.46225085]
[1753605170359,0.53627928,118140.0,118130.0,0.33429085]
[1753605170578,0.53627928,118140.0,118130.0,0.46225085]
[1753605170817,0.53627928,118140.0,118130.0,0.29294585]
[1753605171040,0.52781497,118140.0,118130.0,0.46225085]
[1753605173886,0.52781497,118140.0,118130.0,0.29294585]
[1753605174658,0.51935044,118140.0,118130.0,0.29294585]
[1753605179803,0.51935044,118140.0,118130.0,0.46225085]
[1753605180750,0.51935044,118140.0,118130.0,0.45902085]
[1753605180914,0.54278044,118140.0,118130.0,0.45902085]
[1753605181343,0.51935044,118140.0,118130.0,0.46223085]
[1753605182557,0.51935044,118140.0,118130.0,0.46219085]
[1753605184379,0.20306067,118140.0,118130.0,0.46219085]
[1753605184594,0.51935044,118140.0,118130.0,0.46219085]
[1753605185799,0.51935044,118140.0,118130.0,0.29288585]
[1753605194981,0.54278044,118140.0,118130.0,0.29288585]
[1753605197596,0.51935044,118140.0,118130.0,0.29288585]
[1753605198099,0.20306067,118140.0,118130.0,0.29288585]
[1753605198352,0.51935044,118140.0,118130.0,0.29288585]
[1753605208047,0.51935044,118140.0,118130.0,0.39216585]
[1753605210585,0.54380044,118140.0,118130.0,0.39216585]
[1753605210801,0.51935044,118140.0,118130.0,0.39216585]
[1753605216589,0.50275044,118140.0,118130.0,0.39216585]
[1753605216804,0.50275044,118140.0,118130.0,0.4006311]
[1753605219258,0.50275044,118140.0,118130.0,0.5699361]
[1753605220277,0.50275044,118140.0,118130.0,0.56147085]
[1753605220914,0.50275044,118140.0,118130.0,0.5699361]
[1753605221344,0.50275044,118140.0,118130.0,0.56147085]
[1753605223095,0.50275044,118140.0,118130.0,0.5699361]
[1753605223939,0.18646067,118140.0,118130.0,0.5699361]
[1753605224145,0.50275044,118140.0,118130.0,0.57840127]
[1753605224593,0.18646067,118140.0,118130.0,0.57840127]
[1753605224808,0.50275044,118140.0,118130.0,0.5699361]
[1753605226987,0.50275044,118140.0,118130.0,0.5698561]
[1753605228659,0.51935044,118140.0,118130.0,0.55617085]
[1753605228861,0.54380044,118140.0,118130.0,0.54908127]
[1753605229072,0.54380044,118140.0,118130.0,0.57252127]
[1753605229268,0.54380044,118140.0,118130.0,0.5640561]
[1753605229487,0.54380044,118140.0,118130.0,0.5691561]
[1753605229712,0.51935044,118140.0,118130.0,0.5691561]
[1753605230687,0.51935044,118140.0,118130.0,0.56069085]
[1753605230874,0.51935044,118140.0,118130.0,0.5691561]
[1753605231088,0.51935044,118140.0,118130.0,0.4413161]
[1753605231300,0.54380044,118140.0,118130.0,0.53215085]
[1753605231505,0.54380044,118140.0,118130.0,0.5406161]
[1753605231713,0.51935044,118140.0,118130.0,0.5691561]
[1753605231930,0.51935044,118140.0,118130.0,0.56069085]
[1753605232135,0.46775044,118140.0,118130.0,0.56069085]
[1753605233744,0.46775044,118140.0,118130.0,0.5691561]
[1753605234608,0.46775044,118140.0,118130.0,0.56069085]
[1753605236366,0.46775044,118140.0,118130.0,0.39138585]
[1753605236738,0.15146067,118140.0,118130.0,0.3998511]
[1753605236942,0.46775044,118140.0,118130.0,0.5691561]
[1753605239572,0.46775044,118140.0,118130.0,0.56069085]
[1753605240519,0.46775044,118140.0,118130.0,0.5691561]
[1753605241468,0.46775044,118140.0,118130.0,0.44978127]
[1753605241688,0.46775044,118140.0,118130.0,0.57762127]
[1753605242513,0.46775044,118140.0,118130.0,0.44978127]
[1753605242721,0.46775044,118140.0,118130.0,0.5691561]
[1753605243691,0.46775044,118140.0,118130.0,0.4413161]
[1753605243903,0.46775044,118140.0,118130.0,0.5691561]
[1753605244714,0.46775044,118140.0,118130.0,0.56069085]
[1753605244928,0.46775044,118140.0,118130.0,0.5691561]
[1753605245290,0.89203839,118140.0,118130.0,0.15052855]
[1753605245543,0.82432021,118140.0,118130.0,0.15052855]
[1753605245760,1.22557021,118140.0,118130.0,0.27836855]
[1753605245979,1.22557021,118140.0,118130.0,0.27736855]
[1753605246420,0.82557021,118140.0,118130.0,0.27736855]
[1753605247067,0.82557021,118140.0,118130.0,0.14952855]
[1753605247285,0.82557021,118140.0,118130.0,0.27736855]
[1753605247493,0.91004751,118140.0,118130.0,0.27736855]
[1753605247728,1.31004751,118140.0,118130.0,0.27736855]
[1753605248054,1.31304751,118140.0,118130.0,0.27736855]
[1753605249336,0.91504751,118140.0,118130.0,0.27736855]
[1753605249876,0.92354364,118140.0,118130.0,0.27736855]
[1753605250614,0.83057021,118140.0,118130.0,0.27736855]
[1753605250806,0.82932021,118140.0,118130.0,0.27736855]
[1753605253181,0.83793773,118140.0,118130.0,0.27736855]
[1753605255073,0.20535819,118140.0,118130.0,0.27736855]
[1753605255308,0.83793773,118140.0,118130.0,0.27736855]
[1753605255505,0.92241503,118140.0,118130.0,0.27736855]
[1753605255735,0.83793773,118140.0,118130.0,0.27736855]
[1753605255985,0.82932021,118140.0,118130.0,0.27736855]
[1753605258219,0.83801582,118140.0,118130.0,0.27736855]
[1753605258433,0.82932021,118140.0,118130.0,0.27736855]
[1753605259500,1.61957021,118140.0,118130.0,0.14952855]
[1753605259712,1.70404751,118140.0,118130.0,0.27736855]
[1753605259927,1.72947951,118140.0,118130.0,0.27736855]
[1753605260332,1.72947951,118140.0,118130.0,0.14952855]
[1753605260530,1.72947951,118140.0,118130.0,0.27736855]
[1753605262024,1.73797328,118140.0,118130.0,0.27736855]
[1753605263619,1.73672328,118140.0,118130.0,0.27736855]
[1753605265205,1.73797328,118140.0,118130.0,0.27736855]
[1753605265692,1.73672328,118140.0,118130.0,0.27736855]
[1753605267906,1.73676328,118140.0,118130.0,0.27736855]
[1753605272765,1.65228598,118140.0,118130.0,0.27736855]
[1753605275946,1.73676328,118140.0,118130.0,0.27736855]
[1753605276365,1.73676328,118140.0,118130.0,0.14952855]
[1753605276767,1.73676328,118140.0,118130.0,0.27736855]
[1753605281164,1.73676328,118140.0,118130.0,0.27736855]
[1753605285174,1.73676328,118140.0,118130.0,0.14952855]
[1753605285361,2.16061003,118140.0,118130.0,0.14952855]
[1753605285602,2.16061003,118140.0,118130.0,0.27736855]
[1753605286287,2.17805905,118140.0,118130.0,0.27736855]
[1753605286510,1.72905905,118140.0,118130.0,0.27736855]
[1753605287402,1.72056528,118140.0,118130.0,0.27736855]
[1753605288733,1.71931528,118140.0,118130.0,0.27736855]
[1753605293657,1.63483798,118140.0,118130.0,0.27736855]
[1753605294540,1.66930092,118140.0,118130.0,0.27736855]
[1753605296434,1.35301115,118140.0,118130.0,0.27736855]
[1753605296888,1.33713502,118140.0,118130.0,0.27736855]
[1753605297114,1.35300477,118140.0,118130.0,0.27736855]
[1753605297769,1.43748207,118140.0,118130.0,0.27736855]
[1753605299132,1.42161232,118140.0,118130.0,0.27736855]
[1753605299345,1.33713502,118140.0,118130.0,0.27736855]
[1753605299781,1.33713502,118140.0,118130.0,0.30363855]
[1753605300006,1.29510346,118140.0,118130.0,0.30564855]
[1753605300226,1.2369138,118140.0,118130.0,0.30564855]
[1753605300414,1.23096279,118140.0,118130.0,0.30564855]
[1753605300657,1.25903072,118140.0,118130.0,0.30564855]
[1753605300879,1.23096279,118140.0,118130.0,0.30564855]
[1753605301315,1.24596279,118140.0,118130.0,0.30564855]
[1753605314898,1.24668305,118140.0,118130.0,0.30564855]
[1753605315513,1.27140305,118140.0,118130.0,0.30564855]
[1753605316332,1.27140305,118140.0,118130.0,0.28230855]
[1753605316534,1.35588035,118140.0,118130.0,0.28230855]
[1753605317906,1.35588035,118140.0,118130.0,0.30564855]
[1753605326267,1.36183398,118140.0,118130.0,0.30564855]
[1753605328809,1.37733398,118140.0,118130.0,0.27736855]
[1753605331078,0.66027714,118140.0,118130.0,0.27736855]
[1753605331287,1.29285668,118140.0,118130.0,0.27736855]
[1753605332916,1.30874098,118140.0,118130.0,0.27736855]
[1753605333608,1.65167103,118140.0,118130.0,0.12784001]
[1753605333866,1.65167103,118140.0,118130.0,1e-08]
[1753605333867,1.77951103,118140.0,118130.0,1e-08]
[1753605334312,1.86398833,118140.0,118130.0,1e-08]
[1753605334531,1.86098833,118140.0,118130.0,1e-08]
[1753605334761,1.86398833,118140.0,118130.0,1e-08]
[1753605334984,1.86098833,118140.0,118130.0,1e-08]
[1753605335431,1.86398833,118140.0,118130.0,1e-08]
[1753605336088,1.86198833,118140.0,118130.0,1e-08]
[1753605336308,1.95306833,118140.0,118130.0,1e-08]
[1753605336527,1.86398833,118140.0,118130.0,1e-08]
[1753605338915,1.86198833,118140.0,118130.0,1e-08]
[1753605339130,1.86073833,118140.0,118130.0,1e-08]
[1753605339352,1.83095914,118140.0,118130.0,1e-08]
[1753605339561,1.86070932,118140.0,118130.0,1e-08]
[1753605340405,1.86370932,118140.0,118130.0,1e-08]
[1753605341347,1.85577594,118140.0,118130.0,1e-08]
[1753605342228,1.85577397,118140.0,118130.0,1e-08]
[1753605346355,1.94485397,118140.0,118130.0,1e-08]
[1753605346599,1.85577397,118140.0,118130.0,1e-08]
[1753605347471,1.72793397,118140.0,118130.0,1e-08]
[1753605347693,1.85577397,118140.0,118130.0,1e-08]
[1753605350138,1.85577259,118140.0,118130.0,1e-08]
[1753605352369,1.84719931,118140.0,118130.0,1e-08]
[1753605354122,1.84719937,118140.0,118130.0,1e-08]
[1753605354336,1.85513223,118140.0,118130.0,1e-08]
[1753605357522,1.86360724,118140.0,118130.0,1e-08]
[1753605360929,1.85568383,118140.0,118130.0,1e-08]
[1753605361350,1.86362247,118140.0,118130.0,0.00297001]
[1753605363196,1.84812247,118140.0,118130.0,0.00297001]
[1753605366546,1.5318327,118140.0,118130.0,0.00297001]
[1753605366972,1.5318327,118140.0,118130.0,0.02610001]
[1753605367177,1.5318327,118140.0,118130.0,0.00297001]
[1753605367388,1.84812247,118140.0,118130.0,0.00297001]
[1753605371917,1.84813203,118140.0,118130.0,0.00297001]
[1753605373687,1.53184226,118140.0,118130.0,0.00297001]
[1753605374554,0.19521912,118130.0,118120.0,0.03943]
[1753605374765,0.81425214,118130.0,118120.0,0.04146]
[1753605375180,0.83968914,118130.0,118120.0,0.04146]
[1753605375543,1.02813891,118130.0,118120.0,0.04146]
[1753605375738,1.17186305,118130.0,118120.0,0.04146]
[1753605375970,1.17486305,118130.0,118120.0,0.04146]
[1753605376376,1.17486305,118130.0,118120.0,0.04443]
[1753605376932,1.17786305,118130.0,118120.0,0.04443]
[1753605377871,1.17786128,118130.0,118120.0,0.04443]
[1753605378945,1.18003128,118130.0,118120.0,0.02833]
[1753605379400,1.16414891,118130.0,118120.0,0.02833]
[1753605379614,1.18002992,118130.0,118120.0,0.02833]
[1753605380783,1.15820026,118130.0,118120.0,0.02833]
[1753605381601,1.18003571,118130.0,118120.0,0.02833]
[1753605382159,1.16415538,118130.0,118120.0,0.02833]
[1753605382367,1.1800355,118130.0,118120.0,0.02833]
[1753605384701,1.16415532,118130.0,118120.0,0.02833]
[1753605390057,1.16415532,118130.0,118120.0,0.02536]
[1753605390335,1.18853532,118130.0,118120.0,0.02536]
[1753605390784,1.18853532,118130.0,118120.0,0.02333]
[1753605393572,1.2044132,118130.0,118120.0,0.02333]
[1753605394187,1.18853462,118130.0,118120.0,0.02333]
[1753605394840,1.18853462,118130.0,118120.0,0.0002]
[1753605395294,1.20441352,118130.0,118120.0,0.0002]
[1753605395513,1.20441352,118130.0,118120.0,0.0234]
[1753605397345,1.20441388,118130.0,118120.0,0.0234]
[1753605399384,1.22296388,118130.0,118120.0,0.0002]
[1753605403729,1.22001388,118130.0,118120.0,0.0002]
[1753605403873,1.22001824,118130.0,118120.0,0.0002]
[1753605405135,1.22796086,118130.0,118120.0,0.0002]
[1753605406002,1.22796257,118130.0,118120.0,0.0002]
[1753605407272,0.59538303,118130.0,118120.0,0.0002]
[1753605407484,1.22796257,118130.0,118120.0,0.0002]
[1753605408978,1.22796257,118130.0,118120.0,0.0234]
[1753605409395,1.22796257,118130.0,118120.0,0.0002]
[1753605409851,1.21236467,118130.0,118120.0,0.0002]
[1753605410587,1.22836467,118130.0,118120.0,0.0002]
[1753605411038,1.22836467,118130.0,118120.0,0.0234]
[1753605411756,1.21236467,118130.0,118120.0,0.0234]
[1753605412997,1.21236375,118130.0,118120.0,0.0234]
[1753605414974,1.20442205,118130.0,118120.0,0.0234]
[1753605415665,1.20442205,118130.0,118120.0,0.0002]
[1753605416240,1.21972205,118130.0,118120.0,0.0002]
[1753605416839,1.20442205,118130.0,118120.0,0.0246]
[1753605417041,1.20442205,118130.0,118120.0,0.0002]
[1753605418462,1.20442205,118130.0,118120.0,0.0246]
[1753605419310,1.21236376,118130.0,118120.0,0.0246]
[1753605419518,1.22766376,118130.0,118120.0,0.0246]
[1753605419905,1.22766376,118130.0,118120.0,0.0002]
[1753605420940,1.21236376,118130.0,118120.0,0.0246]
[1753605421665,1.23821794,118130.0,118120.0,0.0246]
[1753605422365,1.23821794,118130.0,118120.0,0.0002]
[1753605423265,1.23821649,118130.0,118120.0,0.0002]
[1753605423710,1.23821673,118130.0,118120.0,0.0002]
[1753605424627,1.08655096,118130.0,118120.0,0.0002]
[1753605424815,1.21439096,118130.0,118120.0,0.0246]
[1753605425042,1.23027462,118130.0,118120.0,0.0246]
[1753605425333,0.89810119,118130.0,118120.0,0.0246]
[1753605425553,0.91398445,118130.0,118120.0,0.0246]
[1753605426030,0.89810119,118130.0,118120.0,0.0246]
[1753605426264,1.2302742,118130.0,118120.0,0.0246]
[1753605428547,1.2466742,118130.0,118120.0,0.0002]
[1753605428777,1.25461604,118130.0,118120.0,0.0002]
[1753605429004,1.2466742,118130.0,118120.0,0.0002]
[1753605432512,1.24667537,118130.0,118120.0,0.0002]
[1753605434346,1.25461761,118130.0,118120.0,0.0002]
[1753605435044,1.24667537,118130.0,118120.0,0.0002]
[1753605435279,1.25461762,118130.0,118120.0,0.0002]
[1753605438417,1.25461771,118130.0,118120.0,0.0002]
[1753605441272,1.25461793,118130.0,118120.0,0.0002]
[1753605442470,1.25461795,118130.0,118120.0,0.0002]
[1753605443135,1.22483444,118130.0,118120.0,0.0002]
[1753605444598,1.240719,118130.0,118120.0,0.0002]
[1753605445033,1.25461799,118130.0,118120.0,0.0002]
[1753605448725,0.19523417,118120.0,118110.0,0.05884]
[1753605448949,1.47104502,118120.0,118110.0,0.06095]
[1753605449160,0.83846548,118120.0,118110.0,0.06095]
[1753605449378,1.4964831,118120.0,118110.0,0.06095]
[1753605450050,1.4984831,118120.0,118110.0,0.06095]
[1753605450286,1.4994831,118120.0,118110.0,0.06095]
[1753605453237,1.4994831,118120.0,118110.0,0.059154]
[1753605454278,1.5016331,118120.0,118110.0,0.059154]
[1753605455447,1.09875603,118120.0,118110.0,0.059154]
[1753605455913,1.4150458,118120.0,118110.0,0.059154]
[1753605456120,1.09875603,118120.0,118110.0,0.059154]
[1753605457718,1.4171958,118120.0,118110.0,0.05781]
[1753605457935,1.4171958,118120.0,118110.0,0.04261]
[1753605458157,1.5264431,118120.0,118110.0,0.04261]
[1753605458597,1.49571631,118120.0,118110.0,0.04261]
[1753605458808,1.52951304,118120.0,118110.0,0.0244]
[1753605459270,0.17780021,118110.0,118100.0,0.06147]
[1753605459489,0.89485705,118110.0,118100.0,0.06358]
[1753605459741,0.97933433,118110.0,118100.0,0.06358]